Cogmind - Beta 9.6 @@@ ROGUE MODE // 2020.08.29 @ 01:57:59 Player: scoobysnack1 Result: Destroyed self with Grenade Launcher Performance ------------- Evolutions (0) 0 Regions Visited (1) 200 Robots Destroyed (16) 80 Value Destroyed (321) 321 Prototype IDs (2) 40 Alien Tech Used (0) 0 Bonus (0) 0 TOTAL SCORE: 641 Bonus ------- None Cogmind --------- Core Integrity 0/250 Matter 250/300 Energy 56/125 System Corruption 0% Temperature Cool (0) Movement Flying (200) Ox2 Location -10/Materials Parts ------- > --- POWER (1) -------- Light Ion Engine > --- PROPULSION (2) --- Flight Unit > --- UTILITY (2) ------ Weapon Shielding Hardened Light Armor Plating > --- WEAPON (2) ------- Grenade Launcher > --- INVENTORY (4) ---- Transport Network Coupler Hardened Light Armor Plating Datajack Hammer Peak State ------------ > --- POWER ------------ Light Ion Engine > --- PROPULSION ------- Hover Unit Hover Unit > --- UTILITY ---------- Weapon Shielding Hardened Light Armor Plating > --- WEAPON ----------- Particle Cannon Particle Cannon > --- INVENTORY -------- Weapon Shielding Grenade Launcher Mining Laser Hammer [Rating: 10] Favorites ----------- Power Light Ion Engine Engine Light Ion Engine Propulsion Wheel Wheel Wheel Hover Unit Hover Unit Flight Unit Flight Unit Utility Weapon Shielding Device Heat Sink Storage Medium Matter Pod Protection Weapon Shielding Weapon Medium Laser Energy Gun Medium Laser Energy Cannon Particle Cannon Ballistic Gun Assault Rifle Launcher Grenade Launcher Special Weapon Mining Laser Impact Weapon Hammer Build | -11 -10 ------- Run | Scr Mat Slots Evolved . | . . Power . | . . Propulsion . | . . Utility . | . . Weapon . | . . Parts Attached 33 | 7 26 Power 3 | 1 2 Engine 3 | 1 2 Core . | . . Reactor . | . . Propulsion 6 | 2 4 Treads . | . . Leg . | . . Wheel 2 | 2 . Hover 2 | . 2 Flight 2 | . 2 Utility 12 | . 12 Device 4 | . 4 Storage 2 | . 2 Processor . | . . Hackware . | . . Protection 6 | . 6 Artifact . | . . Weapon 12 | 4 8 Energy Gun 3 | 3 . Energy Cannon 2 | . 2 Ballistic Gun 3 | 1 2 Ballistic Cannon . | . . Launcher 1 | . 1 Special Weapon 1 | . 1 Impact Weapon 2 | . 2 Slashing Weapon . | . . Piercing Weapon . | . . Special Melee Weapon . | . . Unidentified Prototypes . | . . Parts Lost 7 | . 7 Power 1 | . 1 Propulsion 3 | . 3 Utility 1 | . 1 Weapon 2 | . 2 Highest Loss Streak 3 | . 3 Average Slot Usage (%) 89 | . 89 Engine 11 | . 11 Wheel 13 | . 13 Hover 11 | . 11 Device 8 | . 8 Protection 16 | . 16 Energy Gun 8 | . 8 Energy Cannon 2 | . 2 Ballistic Gun 9 | . 9 Special Weapon 1 | . 1 Impact Weapon 3 | . 3 Naked Turns . | . . Heaviest Build 17 | 7 17 Greatest Support 20 | 20 20 Greatest Overweight (x) 1 | . 1 Average Overweight (x) . | . . Largest Inventory Capacity 4 | 4 4 Average Capacity 4 | 4 4 Most Carried 4 | 2 4 Average Carried 3 | . 3 Final Capacity 4 | 4 4 Final Carried 4 | 2 4 Class Distribution -------------------- 95% | Mutant 4% | Scavenger-Mutant Dominant Class ---------------- Mutant | -10/Materials Resources | -11 -10 ----------- Run | Scr Mat Matter Collected 608 | 370 238 Remotely . | . . Salvage Created 489 | 78 411 Parts 34 | 4 30 Haulers Intercepted 1 | . 1 Recyclers Shooed 1 | . 1 Parts Field Recycled . | . . Retrieved Matter . | . . Parts Self-Destructed . | . . Prevented . | . . Kills | -11 -10 ------- Run | Scr Mat Combat Hostiles Destroyed 10 | 1 9 Melee 4 | . 4 Guns 3 | 1 2 Cannons 2 | . 2 AOE 1 | . 1 Classes Destroyed 6 | 2 4 Worker 1 | 1 . Hauler 1 | . 1 Operator 1 | . 1 Watcher 3 | . 3 Swarmer 4 | . 4 Grunt 6 | 1 5 Best Kill Streak 2 | 1 2 Combat Bots Only 2 | 1 2 Max Kills in Single Turn 1 | 1 1 Gunslinging . | . . Exploded 1 | . 1 Melee 1 | . 1 Uniques/NPCs Destroyed . | . . Combat | -11 -10 -------- Run | Scr Mat Damage Taken 941 | 32 909 Core 260 | . 260 Absorbed by Shields . | . . Core Remaining (%) 100 | 100 . Volleys Fired 39 | 6 33 Largest 2 | 2 2 Hottest 136 | 90 136 Shots Fired 59 | 9 50 Gun 48 | 9 39 Cannon 9 | . 9 Launcher 1 | . 1 Special 1 | . 1 Kinetic 25 | . 25 Thermal 27 | 3 24 Explosive 1 | . 1 Electromagnetic 6 | 6 . Robot Hit Streak 10 | 5 10 Robot Miss Streak 6 | 1 6 Penetration Max . | . . Secondary Targets . | . . Shots Hit Robots 62 | 7 55 Core Hits 20 | 3 17 Critical Hits 1 | . 1 Critical Kills . | . . Critical Parts Destroyed 1 | . 1 Melee Attacks 35 | . 35 Impact 35 | . 35 Slashing . | . . Piercing . | . . Sneak Attacks 4 | . 4 Combat Hostiles . | . . Follow-up Attacks . | . . Damage Inflicted 1127 | 89 1038 Guns 304 | 89 215 Cannons 102 | . 102 Explosions 100 | . 100 Melee 621 | . 621 Ramming . | . . Kinetic 128 | . 128 Thermal 226 | 37 189 Explosive 100 | . 100 Electromagnetic 52 | 52 . Impact 621 | . 621 Slashing . | . . Piercing . | . . Highest Corruption . | . . Average Corruption . | . . Corruption Purged . | . . Overload Shots . | . . Overflow Damage 89 | . 89 Projectiles . | . . Explosions . | . . Melee 89 | . 89 Knockbacks 3 | . 3 Impact 3 | . 3 Kinetic . | . . Secondary . | . . Self-Inflicted Damage 20 | . 20 Shots 1 | . 1 Rammed . | . . Targets Rammed . | . . Kicked . | . . Crushed . | . . Highest Temperature 312 | 108 312 Average Temperature 103 | 65 108 Received Heat Transfer 276 | 18 258 Siege Activations . | . . Robots Corrupted . | . . Combat Hostiles . | . . Parts Fried 2 | . 2 Impact Corruptions 7 | . 7 Robots Melted . | . . Combat Hostiles . | . . Parts Melted . | . . Heat Transferred 555 | 111 444 Parts Sabotaged . | . . Parts Stolen . | . . Parts Stripped . | . . Power Chain Reactions . | . . Missiles Intercepted . | . . Alert | -11 -10 ------- Run | Scr Mat Peak Influence 169 | 25 169 Average Influence 59 | 4 66 Maximum Alert Level . | . . Low Security (%) 100 | 100 100 Level 1 . | . . Level 2 . | . . Level 3 . | . . Level 4 . | . . Level 5 . | . . High Security . | . . Max Security . | . . Squads Dispatched 2 | . 2 Investigation . | . . Extermination . | . . Reinforcement 2 | . 2 Assault . | . . Garrison . | . . Intercept . | . . Construction Impeded . | . . Haulers Reinforced . | . . Stealth | -11 -10 --------- Run | Scr Mat Distress Signals 2 | . 2 Communications Jammed . | . . Distress Signals . | . . Times Spotted 21 | 1 20 Peak Tracking Total 4 | 1 4 Tactical Retreats 2 | . 2 Traps | -11 -10 ------- Run | Scr Mat Traps Triggered 1 | . 1 Indirectly . | . . Trap Hack Attempts . | . . Triggered . | . . Disarmed . | . . Reprogrammed . | . . Reused . | . . Traps Extracted . | . . Installed . | . . Triggered . | . . Machines | -11 -10 ---------- Run | Scr Mat Machines Disabled 1 | . 1 Max in Single Turn 1 | . 1 Machines Sabotaged . | . . Garrisons Compromised . | . . Overloaded Fab Kills . | . . Fab Network Shutdowns . | . . Hacking | -11 -10 --------- Run | Scr Mat Machines Accessed 4 | . 4 Terminals 4 | . 4 Fabricators . | . . Repair Stations . | . . Recycling Units . | . . Scanalyzers . | . . Garrison Access . | . . Total Hacks 14 | . 14 Successful 9 | . 9 Failed 5 | . 5 Catastrophic . | . . Database Lockouts . | . . Manual . | . . Terminals 14 | . 14 Fabricators . | . . Repair Stations . | . . Recycling Units . | . . Scanalyzers . | . . Garrison Access . | . . Terminal Hacks 9 | . 9 Prototype ID Bank 1 | . 1 Locate Traps 1 | . 1 Dispatch Records 1 | . 1 Security Status 1 | . 1 Investigation Status 1 | . 1 Registered Components 1 | . 1 Registered Prototypes 1 | . 1 Zone Layout 2 | . 2 Fabricator Hacks . | . . Repair Station Hacks . | . . Recycling Unit Hacks . | . . Scanalyzer . | . . Garrison Access Hacks . | . . Unauthorized Hacks . | . . Terminals . | . . Fabricators . | . . Repair Stations . | . . Recycling Units . | . . Scanalyzers . | . . Garrison Access . | . . Data Cores Recovered . | . . Used . | . . Hacking Detections . | . . Full Trace Events . | . . Feedback Events . | . . Feedback Blocked . | . . Robot Schematics Acquired . | . . Robots Built . | . . Matter . | . . Time . | . . Total Robot Build Rating . | . . Part Schematics Acquired . | . . Parts Built . | . . Matter . | . . Time . | . . Total Part Build Rating . | . . Parts Repaired . | . . Time . | . . Parts Recycled . | . . Recycled Matter . | . . Retrieved Matter . | . . Retrieved Components . | . . Parts Scanalyzed . | . . Part Schematics Acquired . | . . Parts Damaged . | . . Bothacking | -11 -10 ------------ Run | Scr Mat Used RIF Installer . | . . Robots Hacked . | . . Non-combat . | . . Combat . | . . Robot Hacks Applied . | . . Relay Couplers Released . | . . Robots Rewired . | . . Allies Hacked . | . . Hacks Repelled . | . . Allies | -11 -10 -------- Run | Scr Mat Total Allies . | . . Largest Group . | . . Highest-Rated Group . | . . Highest-Rated Ally . | . . Total Orders . | . . Ally Attacks . | . . Total Damage . | . . Kills . | . . Allies Corrupted . | . . Allies Melted . | . . Intel | -11 -10 ------- Run | Scr Mat Robot Analysis Total . | . . Derelict Logs Recovered . | . . Drone Launches . | . . Drone Recoveries . | . . Exploration | -11 -10 ------------- Run | Scr Mat Turns Passed 715 | 76 639 Spaces Moved 504 | 67 437 Core 23 | 16 7 Treads . | . . Legs . | . . Wheels 283 | 51 232 Hover 185 | . 185 Flight 13 | . 13 Fastest Speed 37 | 50 37 Average Speed 73 | 72 73 Slowest Speed 116 | 80 116 Overloaded Moves . | . . Propulsion Burnouts . | . . Robots Hopped . | . . Cave-ins Triggered . | . . Exploration Rate (%) 36 | 7 66 Regions Visited 1 Branch Regions . Pre-discovered Areas . | . . Known Exits Taken . | . . Unknown Exits Taken 1 | 1 . Scrap Searched . | . . Spaces Dug . | . . Terrain Destroyed 5 | . 5 Melee . | . . Projectile 1 | . 1 AOE 4 | . 4 Actions | -11 -10 --------- Run | Scr Mat Total 738 | 82 656 Wait 91 | . 91 Move 503 | 66 437 Hop . | . . Pick Up 17 | 3 14 Fast Attach 16 | 4 12 Attach 8 | 1 7 Detach 2 | . 2 Swap 9 | 2 7 Drop 18 | . 18 Fire 39 | 6 33 Melee 35 | . 35 Ram . | . . Kick . | . . Crush . | . . Escape Stasis . | . . Rewire . | . . Trap . | . . Miscellaneous . | . . Route ------- -11/Scrapyard -10/Materials (discovered 2 exits: [*Mat] / [*Min]) History --------- Turn | Location | Event 2 | -11/Scrapyard | Met Revision 17 57 | -11/Scrapyard | Discovered new exit (range 8) 77 | -11/Scrapyard | Entered Materials 247 | -10/Materials | Discovered new exit (range 8) 309 | -10/Materials | Build established: Mutant 405 | -10/Materials | Discovered new exit (range 15) 599 | -10/Materials | Core integrity fell below 50% 693 | -10/Materials | Core integrity fell below 20% 716 | -10/Materials | Destroyed self with Grenade Launcher Last Messages --------------- Hover Unit destroyed. S-10 Pest destroyed. U-05 Engineer builds a Wall. Dropped Mining Laser. Acquired Lgt. Assault Rifle. Destroyed Lgt. Ion Engine. S-10 Pest destroyed. Acquired 18 matter. Lgt. Assault Rifle destroyed. Acquired Lgt. Assault Rifle. S-10 Pest destroyed. Acquired 13 matter. Acquired Flight Unit. Acquired Lgt. Ion Engine. Acquired Datajack. Acquired Hrd. Light Armor Plating. Flight Unit destroyed. Acquired Hrd. Light Armor Plating. Lgt. Assault Rifle destroyed. S-10 Pest destroyed. Map ----- +----------------------------------------------------+ | #?????????????#""" # # # ## | | #?????????????# # ######## ########## | | #?????????????######## #??????# #????????? | | #????????????????????# #??????# #????????? | | #????????????????????# #??????# #????????? | | #?????????????????#### ##???###+####?????? | | #?????????????????#""" #???# #?????? | | #?????????????????#" #???# #?????? | | #?????????????????#" #???# """#?????? | | #?????????????????#"" < #???# """#?????? | | #?????????????????#"| #???# """#?????? | | #######?????????????????#" #???# = #?????? | | ????????????????????????#""" #???############## | | ??#?????????????????????#### ##????????????????? | | ????##?????????????????????# #?????????????????? | | #######????????????????????# ############??????? | | ! #??????#?????????????# ## #??????? | | #???????????????????## ## #??????? | | "" #???????????????????# # """"" #??????? | | Y" #???????????????????# *#|""""" #??????? | | ] "" #???????????????????# T=%+%""""" #??????? | | #???????????????????# #[=% #??????? | | #######???????????????????# # % #??????? | | ""#???????????????????????## ## #??????? | | Y"#????????????????######### "###########??????? | | ""#????????????????# [[!@ # T#????????????????? | | ###????????????????#]][[ # "#????????????????? | | ???????????????????# [ # ##????????????????? | | ????????????????#### s% #????????????????? | | ##????#?????????# %! ########?????????? | | #?????????????^+ ||| ??????? | | #??????????????# [=%= ######????????? | | #??????????????##+##### ## #?????????????? | | #???????????????# *%[!%=# #?????????????? | | #???????????????# !"" # #?????????????? | | #???????????????# """" # #?????????????? | | #???????????????# """"" # #?????????????? | | ##???????????????# """"" # ????????????? | | ?????????????????# """ + +^??????????? | | ?????????????????# ] ] # # ??????????? | | ?????????????????# "T"!! # #???????????? | | ?????????????????# =[%= ! ######"T"###???????????? | | ?????????????????##########?????####?????????????? | | ?????????????????????????????????????????????????? | | ?????????????????????????????????????????????????? | | ????#????????????????????????????????????????????? | | ?????????????????????????????????????????????????? | | | | | | | +----------------------------------------------------+ Best States ------------- Heat Dissipation 35 Energy Generation 10 Energy Capacity 125 Matter Stores 370 Matter Capacity 400 Sight Range 16 Terrain Scan Range 14 Terrain Scan Density 10 ECM Strength 1 Armor Coverage 150 Weapon Shielding 33 Evasion (%) 62 Item Schematics ----------------- None Robot Schematics ------------------ None Fabricated ------------ Nothing Alien Tech Used ----------------- None Achievements -------------- None Challenges ------------ None Game ------ Seed AdvancedRegenerativeBlaster Manual? 0 Play Time 00:27:58 Cumulative 3.6 hours Start 2020.08.29 @ 01:29:07 End 2020.08.29 @ 01:57:59 Sessions 1 Manual Loads 0 Difficulty Rogue Special Mode None Game No. 3 Rogue 3 Adventurer 0 Explorer 0 Win Type - Total 0 Types 0/0/0/0/0/0/0 Lore% 2 Gallery% 4 Achievement% 3 Wizard Run 0 Options --------- ASCII 0 Keyboard 0 Movement Mouse Keybinds 0 Fullscreen 1 Font 18/SmallcapsGlow Map View 76x50 Tactical HUD 0 Map Filters NONE Filters NONE Steam 1 RUN: 51edeb4b-752c-4403-b39d-b795023f1e0f